[Event "Early-Titled-Tuesday-Blitz-October-17-2023"]
[Site "Chess.com"]
[Date "2023.10.17"]
[Round "10"]
[White "Chessbard1972"]
[Black "lluiss"]
[Result "0-1"]
[WhiteElo "2333"]
[BlackElo "2165"]
[TimeControl "180+1"]
[EndTime "9:59:27 PDT"]
[Termination "lluiss won on time"]

1. d4 {[%clk 0:02:24.8]} 1... Nf6 {[%clk 0:02:57.9]} 2. Nf3 {[%clk 0:02:24.7]}
2... g6 {[%clk 0:02:55.6]} 3. c4 {[%clk 0:02:24.6]} 3... Bg7 {[%clk 0:02:54.4]}
4. g3 {[%clk 0:02:25.1]} 4... O-O {[%clk 0:02:52.8]} 5. Bg2 {[%clk 0:02:25.4]}
5... c6 {[%clk 0:02:52.7]} 6. Nc3 {[%clk 0:02:20.2]} 6... d5 {[%clk 0:02:52.3]}
7. O-O {[%clk 0:02:18.6]} 7... dxc4 {[%clk 0:02:52.2]} 8. a4 {[%clk 0:02:16.8]}
8... a5 {[%clk 0:02:45.3]} 9. Ne5 {[%clk 0:02:15.7]} 9... Be6 {[%clk 0:02:43.5]}
10. e4 {[%clk 0:02:13.7]} 10... Nfd7 {[%clk 0:02:37.2]} 11. f4 {[%clk
0:02:09.3]} 11... Nxe5 {[%clk 0:02:36.8]} 12. fxe5 {[%clk 0:02:08.6]} 12... Qd7
{[%clk 0:02:12.4]} 13. d5 {[%clk 0:01:58.5]} 13... Bg4 {[%clk 0:01:58.7]} 14.
Bf3 {[%clk 0:01:45.4]} 14... Bxf3 {[%clk 0:01:57]} 15. Qxf3 {[%clk 0:01:45.4]}
15... Bxe5 {[%clk 0:01:56.8]} 16. Bh6 {[%clk 0:01:44.1]} 16... Bg7 {[%clk
0:01:47.9]} 17. Bxg7 {[%clk 0:01:43.8]} 17... Kxg7 {[%clk 0:01:48.8]} 18. Rad1
{[%clk 0:01:43.5]} 18... Qd6 {[%clk 0:01:20.1]} 19. dxc6 {[%clk 0:01:30.4]}
19... Qc5+ {[%clk 0:01:19.5]} 20. Kh1 {[%clk 0:01:29.9]} 20... Nxc6 {[%clk
0:01:19.3]} 21. Rd5 {[%clk 0:01:29.6]} 21... Qa7 {[%clk 0:01:06.7]} 22. Nb5
{[%clk 0:01:25.9]} 22... Qb6 {[%clk 0:01:02.9]} 23. Qc3+ {[%clk 0:01:24.7]}
23... Kg8 {[%clk 0:01:01.6]} 24. Qxc4 {[%clk 0:01:23.7]} 24... Nb4 {[%clk
0:00:56.1]} 25. Rd7 {[%clk 0:01:21.3]} 25... Rac8 {[%clk 0:00:48.1]} 26. Qb3
{[%clk 0:01:15.3]} 26... e6 {[%clk 0:00:35.7]} 27. Nd6 {[%clk 0:00:39.6]} 27...
Rc7 {[%clk 0:00:28.5]} 28. Nc4 {[%clk 0:00:30.2]} 28... Qc5 {[%clk 0:00:23.7]}
29. Rxc7 {[%clk 0:00:26.1]} 29... Qxc7 {[%clk 0:00:23.7]} 30. Ne3 {[%clk
0:00:19.9]} 30... Rd8 {[%clk 0:00:21.4]} 31. Ng4 {[%clk 0:00:19.4]} 31... Rd3
{[%clk 0:00:08.4]} 32. Nf6+ {[%clk 0:00:14.2]} 32... Kh8 {[%clk 0:00:02.5]} 0-1

[Event "Early-Titled-Tuesday-Blitz-October-17-2023"]
[Site "Chess.com"]
[Date "2023.10.17"]
[Round "10"]
[White "kritipatel"]
[Black "KorolDimitriy75"]
[Result "1/2-1/2"]
[WhiteElo "2129"]
[BlackElo "2364"]
[TimeControl "180+1"]
[EndTime "9:59:30 PDT"]
[Termination "Game drawn by repetition"]

1. e4 {[%clk 0:03:00.9]} 1... c5 {[%clk 0:03:00.1]} 2. c3 {[%clk 0:03:00]} 2...
d5 {[%clk 0:03:00]} 3. exd5 {[%clk 0:03:00]} 3... Qxd5 {[%clk 0:03:00.9]} 4. d4
{[%clk 0:03:00.4]} 4... cxd4 {[%clk 0:03:01.8]} 5. cxd4 {[%clk 0:03:00.8]} 5...
Nc6 {[%clk 0:03:01.7]} 6. Nf3 {[%clk 0:03:01.3]} 6... e5 {[%clk 0:03:02]} 7. Nc3
{[%clk 0:02:59]} 7... Bb4 {[%clk 0:03:01.8]} 8. Bd2 {[%clk 0:02:57.5]} 8... Bxc3
{[%clk 0:03:01.8]} 9. Bxc3 {[%clk 0:02:58.4]} 9... e4 {[%clk 0:03:02]} 10. Ne5
{[%clk 0:02:57.9]} 10... Nxe5 {[%clk 0:03:02.2]} 11. dxe5 {[%clk 0:02:58.8]}
11... Ne7 {[%clk 0:03:02.8]} 12. Be2 {[%clk 0:02:49.9]} 12... O-O {[%clk
0:03:01.2]} 13. O-O {[%clk 0:02:49.2]} 13... Qe6 {[%clk 0:03:00.8]} 14. h3
{[%clk 0:02:41.9]} 14... Qg6 {[%clk 0:02:42.8]} 15. Qd6 {[%clk 0:02:12.6]} 15...
Re8 {[%clk 0:02:36.3]} 16. Bb5 {[%clk 0:02:02.7]} 16... Nc6 {[%clk 0:02:32]} 17.
Rad1 {[%clk 0:01:45.4]} 17... Be6 {[%clk 0:02:17.6]} 18. Bxc6 {[%clk 0:01:41.9]}
18... bxc6 {[%clk 0:02:17]} 19. Qxc6 {[%clk 0:01:42.5]} 19... Bxa2 {[%clk
0:02:12.8]} 20. Qxg6 {[%clk 0:01:39.7]} 20... hxg6 {[%clk 0:02:13.7]} 21. Rfe1
{[%clk 0:01:33.7]} 21... a5 {[%clk 0:00:58.5]} 22. Rxe4 {[%clk 0:01:32.4]} 22...
a4 {[%clk 0:00:57.5]} 23. Rdd4 {[%clk 0:01:29.9]} 23... Bb3 {[%clk 0:00:56.1]}
24. Bb4 {[%clk 0:01:28.6]} 24... Rac8 {[%clk 0:00:48.5]} 25. Ba3 {[%clk
0:01:26.6]} 25... Rc2 {[%clk 0:00:42.6]} 26. Re3 {[%clk 0:01:16.8]} 26... g5
{[%clk 0:00:20]} 27. Rg4 {[%clk 0:01:11.5]} 27... f6 {[%clk 0:00:17.4]} 28. Rge4
{[%clk 0:01:02.5]} 28... f5 {[%clk 0:00:12]} 29. Rd4 {[%clk 0:00:59.5]} 29...
Re6 {[%clk 0:00:11.5]} 30. Rd6 {[%clk 0:00:55.4]} 30... Kf7 {[%clk 0:00:10.9]}
31. Rd7+ {[%clk 0:00:52.9]} 31... Kg6 {[%clk 0:00:07.6]} 32. Rd6 {[%clk
0:00:46.2]} 32... Kf7 {[%clk 0:00:05.5]} 33. Rd7+ {[%clk 0:00:42.1]} 33... Kg6
{[%clk 0:00:05.5]} 34. g3 {[%clk 0:00:39.9]} 34... f4 {[%clk 0:00:04.5]} 35.
gxf4 {[%clk 0:00:36.6]} 35... gxf4 {[%clk 0:00:05.4]} 36. Re4 {[%clk 0:00:37.2]}
36... Kf5 {[%clk 0:00:05.2]} 37. Rdd4 {[%clk 0:00:37.4]} 37... Rg6+ {[%clk
0:00:04.9]} 38. Kf1 {[%clk 0:00:36.2]} 38... f3 {[%clk 0:00:02.9]} 39. Rf4+
{[%clk 0:00:36]} 39... Kxe5 {[%clk 0:00:03.3]} 40. Rde4+ {[%clk 0:00:36.4]}
40... Kd5 {[%clk 0:00:03.5]} 41. Rd4+ {[%clk 0:00:35.8]} 41... Ke5 {[%clk
0:00:03.9]} 42. Rde4+ {[%clk 0:00:29]} 42... Kd5 {[%clk 0:00:03.9]} 43. Rd4+
{[%clk 0:00:29.5]} 43... Ke5 {[%clk 0:00:04.1]} 1/2-1/2

[Event "Early-Titled-Tuesday-Blitz-October-17-2023"]
[Site "Chess.com"]
[Date "2023.10.17"]
[Round "10"]
[White "McCarthyStone"]
[Black "Bilan_Danila"]
[Result "1-0"]
[WhiteElo "2403"]
[BlackElo "2554"]
[TimeControl "180+1"]
[EndTime "9:59:31 PDT"]
[Termination "McCarthyStone won by checkmate"]

1. c4 {[%clk 0:03:00.9]} 1... c6 {[%clk 0:02:53.9]} 2. d4 {[%clk 0:02:59.8]}
2... d5 {[%clk 0:02:54.8]} 3. Nf3 {[%clk 0:02:58.1]} 3... Nf6 {[%clk 0:02:54.5]}
4. e3 {[%clk 0:02:58.7]} 4... e6 {[%clk 0:02:54.1]} 5. Bd3 {[%clk 0:02:55]} 5...
Nbd7 {[%clk 0:02:53.1]} 6. b3 {[%clk 0:02:55.5]} 6... Ne4 {[%clk 0:02:50.1]} 7.
O-O {[%clk 0:02:55.2]} 7... Bd6 {[%clk 0:02:49.7]} 8. Nbd2 {[%clk 0:02:52.5]}
8... f5 {[%clk 0:02:46]} 9. Bb2 {[%clk 0:02:52.8]} 9... Qf6 {[%clk 0:02:40.7]}
10. Qe2 {[%clk 0:02:24.3]} 10... O-O {[%clk 0:02:38.5]} 11. Rfe1 {[%clk
0:02:18.3]} 11... Qh6 {[%clk 0:02:12.8]} 12. Ne5 {[%clk 0:02:13.4]} 12... Nxe5
{[%clk 0:02:10.8]} 13. dxe5 {[%clk 0:02:13.7]} 13... Bb4 {[%clk 0:02:11.1]} 14.
Nf3 {[%clk 0:02:10.2]} 14... Bxe1 {[%clk 0:02:07.3]} 15. Rxe1 {[%clk 0:02:10.8]}
15... Bd7 {[%clk 0:02:02.6]} 16. Ba3 {[%clk 0:02:10.6]} 16... Rfc8 {[%clk
0:01:55]} 17. Rc1 {[%clk 0:02:04.9]} 17... Be8 {[%clk 0:01:53.4]} 18. Nd4 {[%clk
0:02:00]} 18... c5 {[%clk 0:01:37.9]} 19. Nc2 {[%clk 0:01:58.5]} 19... b6 {[%clk
0:01:16.7]} 20. f3 {[%clk 0:01:59]} 20... Nc3 {[%clk 0:01:11.6]} 21. Qd2 {[%clk
0:01:57.8]} 21... d4 {[%clk 0:01:02.3]} 22. f4 {[%clk 0:01:46.6]} 22... Rd8
{[%clk 0:00:40.7]} 23. exd4 {[%clk 0:01:45.7]} 23... cxd4 {[%clk 0:00:40]} 24.
Bd6 {[%clk 0:01:45.9]} 24... Nxa2 {[%clk 0:00:20.9]} 25. Ra1 {[%clk 0:01:45.7]}
25... Nc3 {[%clk 0:00:20.2]} 26. Nxd4 {[%clk 0:01:46.2]} 26... Ne4 {[%clk
0:00:19.8]} 27. Bxe4 {[%clk 0:01:30.4]} 27... fxe4 {[%clk 0:00:20.7]} 28. Qe3
{[%clk 0:01:30.9]} 28... Qg6 {[%clk 0:00:17.3]} 29. Rf1 {[%clk 0:01:19.9]} 29...
Bd7 {[%clk 0:00:16.2]} 30. h4 {[%clk 0:01:17]} 30... a5 {[%clk 0:00:15.7]} 31.
Ne2 {[%clk 0:01:14]} 31... Rdc8 {[%clk 0:00:14.6]} 32. Qxb6 {[%clk 0:01:12.8]}
32... a4 {[%clk 0:00:13.2]} 33. b4 {[%clk 0:01:11.4]} 33... Rxc4 {[%clk
0:00:07]} 34. b5 {[%clk 0:00:55]} 34... Qe8 {[%clk 0:00:06.7]} 35. f5 {[%clk
0:00:51.1]} 35... a3 {[%clk 0:00:06.5]} 36. f6 {[%clk 0:00:47.5]} 36... gxf6
{[%clk 0:00:06.5]} 37. exf6 {[%clk 0:00:47.5]} 37... Kf7 {[%clk 0:00:06.2]} 38.
Qe3 {[%clk 0:00:44.8]} 38... a2 {[%clk 0:00:06.2]} 39. Qh6 {[%clk 0:00:43.7]}
39... Qg8 {[%clk 0:00:06.5]} 40. Nf4 {[%clk 0:00:28.5]} 40... a1=Q {[%clk
0:00:06.2]} 41. Qh5+ {[%clk 0:00:29]} 41... Qg6 {[%clk 0:00:05.5]} 42. Nxg6
{[%clk 0:00:28.8]} 42... Qxf1+ {[%clk 0:00:03.3]} 43. Kxf1 {[%clk 0:00:29.7]}
43... hxg6 {[%clk 0:00:03.9]} 44. Qh7+ {[%clk 0:00:29.2]} 44... Kxf6 {[%clk
0:00:04.4]} 45. Qe7+ {[%clk 0:00:28]} 45... Kf5 {[%clk 0:00:04]} 46. Qg5# {[%clk
0:00:28.7]} 1-0

[Event "Early-Titled-Tuesday-Blitz-October-17-2023"]
[Site "Chess.com"]
[Date "2023.10.17"]
[Round "10"]
[White "atalz0"]
[Black "Heinza9"]
[Result "1/2-1/2"]
[WhiteElo "2483"]
[BlackElo "2308"]
[TimeControl "180+1"]
[EndTime "9:59:34 PDT"]
[Termination "Game drawn - insufficient material"]

1. d4 {[%clk 0:03:00.9]} 1... f5 {[%clk 0:02:59.2]} 2. g3 {[%clk 0:03:00.4]}
2... Nf6 {[%clk 0:02:59.3]} 3. Bg2 {[%clk 0:03:00.6]} 3... g6 {[%clk 0:02:59.8]}
4. Nh3 {[%clk 0:03:00.8]} 4... Bg7 {[%clk 0:03:00.1]} 5. c4 {[%clk 0:03:00.9]}
5... O-O {[%clk 0:03:00.1]} 6. O-O {[%clk 0:02:59.3]} 6... d6 {[%clk 0:03:00.5]}
7. d5 {[%clk 0:02:59.6]} 7... c6 {[%clk 0:02:55.5]} 8. Nc3 {[%clk 0:02:59]} 8...
e5 {[%clk 0:02:53.6]} 9. dxe6 {[%clk 0:02:57.9]} 9... Bxe6 {[%clk 0:02:53.2]}
10. Qb3 {[%clk 0:02:56.6]} 10... b5 {[%clk 0:02:29.3]} 11. Nxb5 {[%clk
0:02:50.1]} 11... cxb5 {[%clk 0:02:29.5]} 12. Qxb5 {[%clk 0:02:51]} 12... Nbd7
{[%clk 0:02:18.2]} 13. Bxa8 {[%clk 0:02:43.5]} 13... Qxa8 {[%clk 0:02:17.7]} 14.
Ng5 {[%clk 0:02:44.4]} 14... Bf7 {[%clk 0:02:03.9]} 15. Rd1 {[%clk 0:02:42.6]}
15... Rb8 {[%clk 0:01:52.1]} 16. Qa6 {[%clk 0:02:31.3]} 16... Rb6 {[%clk
0:01:48.9]} 17. Qa4 {[%clk 0:01:59.3]} 17... Nc5 {[%clk 0:01:46.7]} 18. Qc2
{[%clk 0:01:58.1]} 18... Qe8 {[%clk 0:01:32.6]} 19. Nxf7 {[%clk 0:01:56.5]}
19... Qxf7 {[%clk 0:01:32.4]} 20. Rb1 {[%clk 0:01:49.6]} 20... Ng4 {[%clk
0:01:03.7]} 21. f3 {[%clk 0:01:29.8]} 21... Ne5 {[%clk 0:01:03.2]} 22. b4 {[%clk
0:01:26.1]} 22... Qxc4 {[%clk 0:00:48.6]} 23. Qxc4+ {[%clk 0:01:22.3]} 23...
Nxc4 {[%clk 0:00:48.4]} 24. Bf4 {[%clk 0:01:20.1]} 24... Nb7 {[%clk 0:00:45.3]}
25. a4 {[%clk 0:00:55.3]} 25... a6 {[%clk 0:00:38.2]} 26. b5 {[%clk 0:00:52.5]}
26... axb5 {[%clk 0:00:37.5]} 27. Rxb5 {[%clk 0:00:49.5]} 27... Rxb5 {[%clk
0:00:36.5]} 28. axb5 {[%clk 0:00:50.4]} 28... Kf7 {[%clk 0:00:36.5]} 29. Rc1
{[%clk 0:00:40.1]} 29... d5 {[%clk 0:00:36.1]} 30. e4 {[%clk 0:00:39.9]} 30...
fxe4 {[%clk 0:00:35.6]} 31. fxe4 {[%clk 0:00:40.8]} 31... Ke6 {[%clk 0:00:35.8]}
32. exd5+ {[%clk 0:00:39.3]} 32... Kxd5 {[%clk 0:00:35.9]} 33. Rd1+ {[%clk
0:00:38.7]} 33... Bd4+ {[%clk 0:00:35.5]} 34. Kg2 {[%clk 0:00:35.2]} 34... Nbd6
{[%clk 0:00:35.2]} 35. Kf3 {[%clk 0:00:35]} 35... Nxb5 {[%clk 0:00:35]} 36. Re1
{[%clk 0:00:24.9]} 36... Ne5+ {[%clk 0:00:30.9]} 37. Bxe5 {[%clk 0:00:23.2]}
37... Bxe5 {[%clk 0:00:31.1]} 38. Kg4 {[%clk 0:00:21.9]} 38... h6 {[%clk
0:00:30.2]} 39. h4 {[%clk 0:00:19.5]} 39... Nd4 {[%clk 0:00:28.5]} 40. h5 {[%clk
0:00:17.5]} 40... g5 {[%clk 0:00:28.4]} 41. Ra1 {[%clk 0:00:15.1]} 41... Bd6
{[%clk 0:00:25.5]} 42. Ra8 {[%clk 0:00:14]} 42... Ne2 {[%clk 0:00:22.8]} 43. Rh8
{[%clk 0:00:11.8]} 43... Nxg3 {[%clk 0:00:21.4]} 44. Rxh6 {[%clk 0:00:12]} 44...
Ne4 {[%clk 0:00:21.6]} 45. Rg6 {[%clk 0:00:10.7]} 45... Be5 {[%clk 0:00:21.5]}
46. Rxg5 {[%clk 0:00:10.6]} 46... Nxg5 {[%clk 0:00:21.6]} 47. Kxg5 {[%clk
0:00:11.5]} 47... Ke6 {[%clk 0:00:21.7]} 48. Kg6 {[%clk 0:00:11.9]} 48... Bd4
{[%clk 0:00:21.2]} 49. h6 {[%clk 0:00:12.3]} 49... Be5 {[%clk 0:00:21.4]} 50. h7
{[%clk 0:00:13.2]} 50... Bd4 {[%clk 0:00:21.5]} 51. h8=Q {[%clk 0:00:14.1]}
51... Bxh8 {[%clk 0:00:21.3]} 1/2-1/2

[Event "Early-Titled-Tuesday-Blitz-October-17-2023"]
[Site "Chess.com"]
[Date "2023.10.17"]
[Round "10"]
[White "zsoltkorpics"]
[Black "LangesNasenhaar"]
[Result "1-0"]
[WhiteElo "2353"]
[BlackElo "2489"]
[TimeControl "180+1"]
[EndTime "9:59:38 PDT"]
[Termination "zsoltkorpics won on time"]

1. e4 {[%clk 0:03:00.9]} 1... Nc6 {[%clk 0:02:59.5]} 2. Bb5 {[%clk 0:02:59.5]}
2... d5 {[%clk 0:02:57.9]} 3. exd5 {[%clk 0:02:59.1]} 3... Qxd5 {[%clk
0:02:57.7]} 4. Bxc6+ {[%clk 0:02:20.8]} 4... Qxc6 {[%clk 0:02:56.9]} 5. Qf3
{[%clk 0:02:21.3]} 5... Bd7 {[%clk 0:02:56.3]} 6. d4 {[%clk 0:02:19.2]} 6...
O-O-O {[%clk 0:02:50.5]} 7. d5 {[%clk 0:02:15.9]} 7... Qg6 {[%clk 0:02:45]} 8.
Na3 {[%clk 0:01:45.6]} 8... e6 {[%clk 0:02:43.5]} 9. Nh3 {[%clk 0:01:30.3]} 9...
exd5 {[%clk 0:02:39]} 10. Nf4 {[%clk 0:01:30.5]} 10... Qe4+ {[%clk 0:02:35.7]}
11. Qxe4 {[%clk 0:01:11]} 11... dxe4 {[%clk 0:02:36.6]} 12. Nc4 {[%clk
0:01:09.3]} 12... g5 {[%clk 0:02:15.6]} 13. Ne2 {[%clk 0:01:01.3]} 13... f6
{[%clk 0:02:07.1]} 14. Ng3 {[%clk 0:00:52.2]} 14... Bb5 {[%clk 0:01:55.1]} 15.
Ne3 {[%clk 0:00:49.9]} 15... Re8 {[%clk 0:01:46.4]} 16. Bd2 {[%clk 0:00:46.6]}
16... Bd6 {[%clk 0:01:33.1]} 17. Bc3 {[%clk 0:00:43.9]} 17... Re6 {[%clk
0:01:20.7]} 18. O-O-O {[%clk 0:00:39.3]} 18... Ne7 {[%clk 0:01:14.7]} 19. Ngf5
{[%clk 0:00:35.2]} 19... Nxf5 {[%clk 0:01:08.6]} 20. Nxf5 {[%clk 0:00:36.1]}
20... Bf4+ {[%clk 0:01:07.8]} 21. Kb1 {[%clk 0:00:35.4]} 21... Rf8 {[%clk
0:01:08.2]} 22. Nd4 {[%clk 0:00:34.1]} 22... Rb6 {[%clk 0:01:02.7]} 23. Ba5
{[%clk 0:00:31.6]} 23... Bd7 {[%clk 0:00:21.2]} 24. Bxb6 {[%clk 0:00:30.9]}
24... axb6 {[%clk 0:00:22.1]} 25. Rhe1 {[%clk 0:00:28.9]} 25... f5 {[%clk
0:00:15]} 26. g3 {[%clk 0:00:27.8]} 26... Be5 {[%clk 0:00:13.8]} 27. c3 {[%clk
0:00:22.6]} 27... h5 {[%clk 0:00:08.4]} 28. Nc2 {[%clk 0:00:20.1]} 28... Bc6
{[%clk 0:00:06.5]} 29. Ne3 {[%clk 0:00:16.3]} 29... f4 {[%clk 0:00:06.8]} 30.
Nc4 {[%clk 0:00:15.9]} 30... Bg7 {[%clk 0:00:04.2]} 31. Nd2 {[%clk 0:00:11.7]}
31... Re8 {[%clk 0:00:03.1]} 32. Nb3 {[%clk 0:00:07.6]} 32... e3 {[%clk
0:00:02.4]} 33. fxe3 {[%clk 0:00:07.2]} 33... fxe3 {[%clk 0:00:03.3]} 34. Nd4
{[%clk 0:00:07.8]} 34... Bg2 {[%clk 0:00:02.1]} 35. Nf5 {[%clk 0:00:06.6]} 1-0

[Event "Early-Titled-Tuesday-Blitz-October-17-2023"]
[Site "Chess.com"]
[Date "2023.10.17"]
[Round "10"]
[White "bescmelasti"]
[Black "Sadykov_Ramil"]
[Result "1-0"]
[WhiteElo "2630"]
[BlackElo "2615"]
[TimeControl "180+1"]
[EndTime "9:59:43 PDT"]
[Termination "bescmelasti won on time"]

1. e4 {[%clk 0:03:00.9]} 1... c6 {[%clk 0:02:52]} 2. d4 {[%clk 0:03:00.4]} 2...
d5 {[%clk 0:02:52.6]} 3. exd5 {[%clk 0:03:01.2]} 3... cxd5 {[%clk 0:02:52.9]} 4.
Bd3 {[%clk 0:03:01.9]} 4... Nc6 {[%clk 0:02:52.2]} 5. c3 {[%clk 0:03:02.7]} 5...
Nf6 {[%clk 0:02:52.7]} 6. h3 {[%clk 0:03:03.4]} 6... g6 {[%clk 0:02:53.1]} 7.
Nf3 {[%clk 0:03:03.9]} 7... Bf5 {[%clk 0:02:53.4]} 8. Be2 {[%clk 0:03:04]} 8...
Bg7 {[%clk 0:02:52.2]} 9. O-O {[%clk 0:03:03.9]} 9... O-O {[%clk 0:02:51.9]} 10.
Bf4 {[%clk 0:03:04.6]} 10... Ne4 {[%clk 0:02:37.7]} 11. Nbd2 {[%clk 0:03:05.1]}
11... Nd6 {[%clk 0:02:37.5]} 12. Re1 {[%clk 0:03:04.6]} 12... Na5 {[%clk
0:02:27.7]} 13. Bf1 {[%clk 0:02:53.1]} 13... a6 {[%clk 0:02:21.8]} 14. Ne5
{[%clk 0:02:42.2]} 14... Rc8 {[%clk 0:02:19.5]} 15. g4 {[%clk 0:02:31.2]} 15...
Bd7 {[%clk 0:02:11.3]} 16. Bg2 {[%clk 0:02:26.3]} 16... e6 {[%clk 0:02:06.7]}
17. Nxg6 {[%clk 0:02:14.5]} 17... hxg6 {[%clk 0:02:02.4]} 18. Bxd6 {[%clk
0:02:14.6]} 18... Re8 {[%clk 0:02:03.1]} 19. Bg3 {[%clk 0:02:11.5]} 19... Bb5
{[%clk 0:01:44.7]} 20. Nf3 {[%clk 0:02:06]} 20... Nc4 {[%clk 0:01:43]} 21. Qc2
{[%clk 0:01:47.8]} 21... Qd7 {[%clk 0:01:34.1]} 22. a4 {[%clk 0:01:45.1]} 22...
Bc6 {[%clk 0:01:32.4]} 23. b3 {[%clk 0:01:45]} 23... Nd6 {[%clk 0:01:31.9]} 24.
Ne5 {[%clk 0:01:45.2]} 24... Qe7 {[%clk 0:01:29.7]} 25. Re3 {[%clk 0:01:35.8]}
25... b5 {[%clk 0:01:08.8]} 26. Rae1 {[%clk 0:01:25]} 26... Bb7 {[%clk
0:01:00.9]} 27. axb5 {[%clk 0:01:14.6]} 27... Nxb5 {[%clk 0:00:59.2]} 28. Qd2
{[%clk 0:01:14]} 28... Qa3 {[%clk 0:00:53.4]} 29. c4 {[%clk 0:01:09.6]} 29...
Nc7 {[%clk 0:00:40]} 30. h4 {[%clk 0:00:35.2]} 30... Ba8 {[%clk 0:00:36.2]} 31.
c5 {[%clk 0:00:32.8]} 31... Nb5 {[%clk 0:00:17.9]} 32. h5 {[%clk 0:00:32.2]}
32... gxh5 {[%clk 0:00:14.2]} 33. gxh5 {[%clk 0:00:32.5]} 33... Bh6 {[%clk
0:00:14.7]} 34. Ng4 {[%clk 0:00:27.6]} 34... Bg5 {[%clk 0:00:08.5]} 35. f4
{[%clk 0:00:23.2]} 35... Be7 {[%clk 0:00:08.2]} 36. f5 {[%clk 0:00:20]} 36...
Nc7 {[%clk 0:00:04.4]} 37. f6 {[%clk 0:00:18.8]} 37... Bf8 {[%clk 0:00:04.5]}
38. Rf3 {[%clk 0:00:13.4]} 38... Kh8 {[%clk 0:00:03.6]} 39. Nh6 {[%clk
0:00:11.8]} 39... Nb5 {[%clk 0:00:01.3]} 40. Nxf7+ {[%clk 0:00:11.6]} 40... Kh7
{[%clk 0:00:02.2]} 41. Ng5+ {[%clk 0:00:11.2]} 41... Kh8 {[%clk 0:00:02.4]} 42.
Nxe6 {[%clk 0:00:11.6]} 1-0

[Event "Early-Titled-Tuesday-Blitz-October-17-2023"]
[Site "Chess.com"]
[Date "2023.10.17"]
[Round "10"]
[White "GMKrikor"]
[Black "Keeper0416"]
[Result "1-0"]
[WhiteElo "2824"]
[BlackElo "2610"]
[TimeControl "180+1"]
[EndTime "9:59:52 PDT"]
[Termination "GMKrikor won on time"]

1. Nf3 {[%clk 0:03:00.9]} 1... a6 {[%clk 0:02:54.3]} 2. e4 {[%clk 0:03:00]} 2...
c5 {[%clk 0:02:53.1]} 3. c3 {[%clk 0:02:54.8]} 3... d5 {[%clk 0:02:51.8]} 4.
exd5 {[%clk 0:02:53.1]} 4... Qxd5 {[%clk 0:02:52.7]} 5. d4 {[%clk 0:02:53.4]}
5... e6 {[%clk 0:02:45.3]} 6. Bd3 {[%clk 0:02:34.3]} 6... cxd4 {[%clk
0:02:37.8]} 7. O-O {[%clk 0:02:34.5]} 7... Nc6 {[%clk 0:02:35.7]} 8. Re1 {[%clk
0:02:31.5]} 8... Nf6 {[%clk 0:02:35.1]} 9. a3 {[%clk 0:02:12.1]} 9... Be7 {[%clk
0:02:15.2]} 10. c4 {[%clk 0:02:11.9]} 10... Qd8 {[%clk 0:02:12.2]} 11. b4 {[%clk
0:02:12.6]} 11... O-O {[%clk 0:01:55.9]} 12. Bb2 {[%clk 0:02:12.5]} 12... Bd7
{[%clk 0:01:25.6]} 13. Nbd2 {[%clk 0:02:10.3]} 13... Re8 {[%clk 0:01:18.7]} 14.
Nb3 {[%clk 0:02:08.3]} 14... Qc7 {[%clk 0:00:57.4]} 15. Nbxd4 {[%clk 0:01:57.9]}
15... Nxd4 {[%clk 0:00:56]} 16. Bxd4 {[%clk 0:01:58.8]} 16... Bc6 {[%clk
0:00:55.1]} 17. Ne5 {[%clk 0:01:52.7]} 17... Rad8 {[%clk 0:00:53.5]} 18. Bb2
{[%clk 0:01:52.3]} 18... Be4 {[%clk 0:00:49.9]} 19. Qc2 {[%clk 0:01:12]} 19...
Bxd3 {[%clk 0:00:37.9]} 20. Nxd3 {[%clk 0:01:12.9]} 20... Ng4 {[%clk 0:00:29]}
21. g3 {[%clk 0:00:47.3]} 21... Bf6 {[%clk 0:00:28.5]} 22. Bxf6 {[%clk
0:00:46.4]} 22... Nxf6 {[%clk 0:00:28.2]} 23. Rad1 {[%clk 0:00:45.2]} 23... Rd4
{[%clk 0:00:24.8]} 24. c5 {[%clk 0:00:41.9]} 24... Red8 {[%clk 0:00:23.9]} 25.
Nb2 {[%clk 0:00:40.9]} 25... h5 {[%clk 0:00:22.3]} 26. Nc4 {[%clk 0:00:38.7]}
26... Rxd1 {[%clk 0:00:15.9]} 27. Rxd1 {[%clk 0:00:38.6]} 27... Rxd1+ {[%clk
0:00:15.9]} 28. Qxd1 {[%clk 0:00:39.5]} 28... Qc6 {[%clk 0:00:11.4]} 29. Qd8+
{[%clk 0:00:25.3]} 29... Kh7 {[%clk 0:00:11.5]} 30. Qd3+ {[%clk 0:00:26.1]}
30... Kg8 {[%clk 0:00:04.8]} 31. Na5 {[%clk 0:00:23.8]} 31... Qc7 {[%clk
0:00:04.2]} 32. Qf3 {[%clk 0:00:12]} 32... Nd5 {[%clk 0:00:02.8]} 33. Qxh5
{[%clk 0:00:10.8]} 33... b6 {[%clk 0:00:03.3]} 34. cxb6 {[%clk 0:00:10.9]} 34...
Qc1+ {[%clk 0:00:02.1]} 35. Kg2 {[%clk 0:00:10.8]} 35... Nxb6 {[%clk 0:00:03]}
36. Qe2 {[%clk 0:00:10.1]} 36... Nd5 {[%clk 0:00:02.8]} 37. Nc4 {[%clk
0:00:07.2]} 37... g6 {[%clk 0:00:02.4]} 38. Qd3 {[%clk 0:00:04.9]} 38... Kh7
{[%clk 0:00:02.7]} 39. h4 {[%clk 0:00:04]} 39... Qe1 {[%clk 0:00:01.5]} 40. Ne3
{[%clk 0:00:03.4]} 40... Nf6 {[%clk 0:00:01.1]} 41. Qc2 {[%clk 0:00:01.9]} 1-0